bitfinex-derivatives/quotes_ETHF0:USTF0_20250804
["timestamp","ask_amount","ask_price","bid_price","bid_amount"]
[1754318826465,3.2078,3633.8,3633.5,0.55034]
[1754318826671,2.50366827,3633.7,3633.6,2.3464]
[1754318826870,1.81616827,3633.7,3633.6,2.3464]
[1754318827079,0.7516464,3633.7,3633.6,2.3464]
[1754318827378,3.75812,3633.8,3633.7,2.3464]
[1754318827570,4.68587626,3633.8,3633.7,2.3464]
[1754318827776,7.15917626,3633.8,3633.7,2.3464]
[1754318828876,6.60885626,3633.8,3633.7,2.3464]
[1754318829171,0.7516464,3633.8,3633.7,2.3464]
[1754318829377,1.4780411,3634.0,3633.8,0.55031]
[1754318829578,0.1761047,3633.9,3633.8,1.38731]
[1754318830175,1.6758047,3633.9,3633.8,2.3973]
[1754318830375,3.3170511,3633.9,3633.8,2.3973]
[1754318830576,0.55034,3633.7,3633.5,2.03994]
[1754318830780,2.1002,3633.6,3633.5,3.61494]
[1754318831270,2.4564,3633.6,3633.5,4.50504]
[1754318831473,4.0147,3633.6,3633.5,4.50504]
[1754318831775,4.0147,3633.6,3633.1,3.2078]
[1754318831976,4.5651,3633.3,3633.2,3.1353]
[1754318832174,4.0147,3633.3,3633.2,3.1353]
[1754318832368,1.4315,3633.3,3633.2,3.9547]
[1754318832575,1.0414,3633.6,3633.5,2.94475]
[1754318832778,4.2492,3633.8,3633.7,2.94472]
[1754318832980,4.42533699,3633.8,3633.7,2.94472]
[1754318833178,5.09403699,3633.8,3633.7,3.9547]
[1754318833480,7.39863699,3633.8,3633.7,3.1353]
[1754318833780,3.2078,3633.8,3633.7,3.9547]
[1754318834177,3.95996996,3633.8,3633.7,3.9547]
[1754318834480,3.2078,3633.8,3633.7,3.9547]
[1754318835879,2.515,3634.1,3634.0,3.01538]
[1754318836074,4.76703,3634.1,3634.0,3.68558]
[1754318836278,0.6005,3634.1,3634.0,4.50498]
[1754318836881,1.57519,3634.0,3633.9,0.55029]
[1754318837190,4.0147,3633.7,3633.6,0.8901]
[1754318837487,4.0147,3633.7,3633.6,2.0338]
[1754318837785,2.4564,3633.7,3633.6,3.9547]
[1754318837988,4.2078,3634.2,3633.7,3.2845]
[1754318838286,4.565,3633.9,3633.8,3.9547]
[1754318839180,4.0147,3633.9,3633.8,3.9547]
[1754318840181,4.0147,3633.9,3633.8,1.575]
[1754318840384,3.67549,3633.3,3633.2,1.5603]
[1754318840688,4.0147,3633.3,3633.2,2.0338]
[1754318840881,4.0147,3633.3,3633.2,1.1437]
[1754318841580,4.0147,3633.3,3633.2,3.1353]
[1754318841781,3.00678,3633.4,3633.3,3.9547]
[1754318841983,1.1509,3633.2,3633.1,0.55041]
[1754318842184,4.5651,3633.2,3633.1,2.00791]
[1754318842477,4.0147,3633.2,3633.1,3.68571]
[1754318842787,0.6005,3633.5,3633.4,4.50506]
[1754318842985,0.74909542,3633.6,3633.5,1.7095]
[1754318843181,3.2078,3633.7,3633.6,2.12534]
[1754318843480,7.2225,3633.7,3633.6,4.50504]
[1754318844382,4.0147,3634.1,3634.0,0.55028]
[1754318844587,4.93989404,3634.1,3634.0,3.1353]
[1754318844786,4.93989404,3634.1,3634.0,2.4651]
[1754318845288,4.1908056,3634.1,3634.0,1.575]
[1754318845486,4.56501,3633.8,3633.7,3.1353]
[1754318845692,2.4564,3633.3,3633.2,2.4651]
[1754318845887,1.0414,3633.6,3633.5,3.1353]
[1754318846189,1.0414,3633.6,3633.5,3.9547]
[1754318846593,4.0147,3633.6,3633.5,3.9547]
[1754318847382,0.6687,3633.9,3633.5,5.33057]
[1754318847594,0.17611695,3633.8,3633.7,1.575]
[1754318847789,1.2692,3633.9,3633.8,4.50501]
[1754318847990,1.44531072,3633.9,3633.8,4.50501]
[1754318848289,2.27631072,3633.9,3633.8,4.50501]
[1754318848491,2.71721072,3633.9,3633.8,4.50501]
[1754318849193,0.17611072,3633.9,3633.8,4.50501]
[1754318849982,4.19081072,3633.9,3633.8,4.50501]
[1754318850179,4.19081072,3633.9,3633.8,3.1353]
[1754318850599,1.15081,3633.8,3633.7,0.55032]
[1754318850787,0.55035,3633.6,3633.4,0.8901]
[1754318851093,3.1251,3633.1,3633.0,0.9987]
[1754318851296,7.2225,3633.1,3633.0,0.9987]
[1754318851487,2.0155,3633.1,3633.0,3.9547]
[1754318851790,1.8724,3633.3,3633.2,3.9547]
[1754318851990,4.0147,3633.3,3633.2,3.9547]
[1754318852393,4.0147,3633.3,3633.2,2.4651]
[1754318853188,4.0147,3633.3,3633.2,0.9987]
[1754318853789,1.0414,3633.3,3633.2,3.9547]
[1754318853985,4.0147,3633.3,3633.2,3.1353]
[1754318854190,4.0147,3633.3,3633.2,2.4651]
[1754318854593,4.0147,3633.3,3633.2,1.575]
[1754318854794,4.19327157,3633.3,3633.2,1.575]
[1754318855495,0.17857157,3633.3,3633.2,3.9547]
[1754318855793,3.2078,3633.4,3632.8,1.54877386]
[1754318855794,3.2078,3633.4,3633.3,2.12539]
[1754318855996,3.2078,3633.4,3633.3,4.50509]
[1754318856998,7.2225,3633.4,3633.3,0.55039]
[1754318857606,4.3174,3633.4,3633.3,4.50509]
[1754318857893,0.6005,3633.9,3633.8,4.50501]
[1754318858094,5.9179,3634.2,3634.1,4.50496]
[1754318858296,6.84546522,3634.2,3634.1,4.50496]
[1754318858490,7.67646522,3634.2,3634.1,4.50496]
[1754318858795,2.1757,3633.9,3633.8,3.1353]
[1754318858996,4.19322175,3633.9,3633.8,3.6856]
[1754318859192,1.80392175,3633.9,3633.8,4.505]
[1754318859588,0.6005,3633.9,3633.8,4.505]
[1754318859794,0.17851237,3633.9,3633.8,4.505]
[1754318859998,4.19321237,3633.9,3633.8,4.505]
[1754318860295,4.12221237,3633.9,3633.8,2.1209]
[1754318860491,4.11091237,3633.9,3633.8,3.5429]
[1754318861590,4.11091237,3633.9,3633.8,1.1341]
[1754318861794,1.5507,3633.7,3633.6,0.5815]
[1754318861993,4.40213,3633.7,3633.6,0.55033]
[1754318862195,3.8518,3633.7,3633.6,0.55033]
[1754318862695,4.40214,3633.6,3633.5,0.55035]
[1754318862891,2.4132,3633.4,3633.3,0.55038]
[1754318863098,3.8518,3633.4,3633.3,0.55038]
[1754318863386,3.8518,3633.4,3633.3,4.41408]
[1754318863795,6.17133,3633.7,3633.6,1.5706]
[1754318864092,0.55036,3633.5,3633.4,1.71566]
[1754318864285,1.4825,3633.6,3633.5,3.24874]
[1754318864488,3.01544,3633.6,3633.5,2.99204]
[1754318864703,4.40214,3633.6,3633.5,2.99204]
[1754318865000,4.40214,3633.6,3633.5,2.12094]
[1754318865198,0.55037,3633.5,3633.4,0.55036]
[1754318865390,3.0332,3633.5,3633.4,0.55036]
[1754318865599,3.8518,3633.5,3633.4,4.41406]
[1754318866293,0.9826,3633.5,3633.4,4.41406]
[1754318866501,6.4396,3633.7,3633.6,4.41404]
[1754318866695,0.55034,3633.6,3633.5,0.55034]
[1754318866899,4.40214,3633.6,3633.5,0.55034]
[1754318867290,4.40214,3633.6,3633.5,1.71564]
[1754318867796,3.58354,3633.6,3633.5,0.55034]
[1754318868001,7.60994,3633.6,3633.5,0.55034]
[1754318868197,3.8518,3633.6,3633.5,2.93974]
[1754318868394,3.8518,3633.6,3633.5,3.54294]
[1754318868595,4.03039209,3633.6,3633.5,1.15354]
[1754318868805,1.8451,3633.0,3632.9,2.4417]
[1754318869103,1.8451,3633.0,3632.9,3.59535]
[1754318869306,1.8451,3633.0,3632.9,4.41415]
[1754318869800,2.4651,3633.0,3632.9,4.41415]
[1754318870099,3.2078,3633.6,3633.4,0.55037]
[1754318870302,2.3011,3633.3,3633.2,0.5504]
[1754318870497,1.5507,3633.3,3633.2,2.9921]
[1754318870696,1.5507,3633.3,3633.2,3.8109]
[1754318871001,0.9826,3633.3,3633.2,4.4141]
[1754318871296,0.9826,3633.3,3632.9,1.37609]
[1754318871297,0.9826,3633.5,3633.4,4.41407]
[1754318871498,1.16114197,3633.5,3633.4,4.41407]
[1754318871802,3.21174197,3633.5,3633.4,4.41407]
[1754318871996,4.03034197,3633.5,3633.4,4.41407]
[1754318872191,0.17854197,3633.5,3633.4,4.41407]
[1754318873003,1.30434197,3633.5,3633.4,4.41407]
[1754318873405,0.73624197,3633.5,3633.4,4.41407]
[1754318873608,0.17854197,3633.5,3633.4,4.41407]
[1754318874305,0.17854197,3633.7,3633.6,4.41404]
[1754318874505,1.98858428,3634.9,3634.1,2.99196]
[1754318874803,1.98858428,3634.9,3634.7,4.41387]
[1754318874804,0.97926463,3634.8,3634.7,4.41387]
[1754318875001,0.97926463,3634.8,3634.7,7.62167]
[1754318875298,0.22756591,3634.8,3634.7,7.62167]
[1754318875806,1.0,3634.9,3634.7,5.32857]
[1754318875998,1.0,3634.9,3634.8,3.8637]
[1754318876422,1.0,3635.0,3634.8,3.8637]
[1754318876697,2.4651,3635.8,3635.7,3.8637]
[1754318876897,3.8518,3635.8,3635.7,3.65739689]
[1754318877101,4.60234392,3635.8,3635.7,3.65739689]
[1754318877303,0.75054392,3635.8,3635.7,3.65739689]
[1754318877498,1.5507,3635.9,3635.8,4.41371]
[1754318877696,0.75054392,3636.0,3635.9,2.2931]
[1754318877897,3.05164392,3636.5,3636.4,1.97192]
[1754318878110,0.75054392,3636.5,3636.4,2.73988126]
[1754318878303,1.37054392,3636.9,3636.4,1.86878126]
[1754318878611,1.4825,3636.5,3636.4,1.422]
[1754318878908,0.75054392,3636.8,3636.5,0.6032]
[1754318879207,0.75054392,3636.9,3636.5,1.36869]
[1754318879532,1.0,3637.0,3636.5,3.2078]
[1754318879716,0.54986,3636.8,3636.7,2.2931]
[1754318879907,2.85099,3636.6,3636.3,2.23983]
[1754318880208,0.54989,3636.6,3636.3,2.2931]
[1754318880409,2.3011,3636.9,3636.3,2.2931]
[1754318880604,1.4825,3636.7,3636.5,1.422]
[1754318880805,2.3011,3636.6,3636.5,0.6032]
[1754318881811,3.3011,3637.0,3636.6,2.2931]
[1754318882112,2.3011,3636.9,3636.8,2.84295]
[1754318882310,2.3011,3636.9,3636.8,0.54985]
[1754318882510,2.23094,3636.9,3636.6,0.6032]
[1754318882809,2.3011,3636.7,3636.5,3.75769]
[1754318883114,1.0,3637.0,3636.5,3.75769]
[1754318883115,2.3011,3636.6,3636.5,3.75769]
[1754318883908,2.3011,3636.9,3636.8,0.6032]
[1754318884108,1.0,3637.0,3636.5,3.75769]
[1754318884307,2.3011,3636.6,3636.5,3.2078]
[1754318884509,2.3011,3636.4,3636.1,0.6032]
[1754318884704,1.6811,3636.0,3635.8,19.598]
[1754318884907,1.37472,3636.7,3635.8,20.14799]
[1754318884908,2.3011,3635.9,3635.8,20.14799]
[1754318885108,2.3011,3635.9,3635.8,0.54999]
[1754318885307,2.3011,3635.9,3635.8,2.84309]
[1754318885511,1.6811,3636.4,3636.3,1.36873]
[1754318885708,0.8625,3636.5,3636.2,0.54994]
[1754318885911,0.62,3636.3,3636.1,1.97196]
[1754318886106,0.62,3636.4,3636.3,0.54993]
[1754318886311,2.3011,3636.6,3636.5,1.9719]
[1754318886510,2.46159413,3636.6,3636.5,2.2931]
[1754318886713,2.46159413,3636.6,3636.5,2.843]
[1754318886914,2.46159413,3636.6,3636.5,2.2931]
[1754318887113,2.46159413,3636.6,3636.5,1.422]
[1754318887314,2.3011,3636.4,3636.2,0.54994]
[1754318887516,2.3011,3636.3,3636.2,0.54994]
[1754318887922,2.46151614,3636.3,3636.2,0.54993]
[1754318888310,3.8518,3636.3,3636.2,4.41363]
[1754318888512,3.8518,3636.3,3636.2,2.72373]
[1754318888814,3.8518,3636.3,3636.2,1.13143]
[1754318889013,3.8518,3636.3,3636.2,2.12053]
[1754318889215,3.8518,3636.3,3636.2,4.41363]
[1754318889415,3.8518,3636.3,3636.2,2.72373]
[1754318889618,3.8518,3636.3,3636.2,4.41363]
[1754318890122,0.6346,3636.8,3636.3,1.37483]
[1754318890413,1.5627,3636.5,3636.4,3.8382]
[1754318890622,3.03,3636.7,3636.6,4.38809]
[1754318890824,1.8347,3636.7,3636.6,4.38809]
[1754318891414,1.0,3637.0,3636.8,2.92816]
[1754318891616,5.39803,3637.0,3636.8,0.54986]
[1754318891822,3.8482,3636.5,3636.4,3.75772]
[1754318892323,3.8482,3636.5,3636.4,3.2078]
[1754318893221,4.39812,3636.4,3636.3,0.54992]
[1754318893422,3.8482,3636.4,3636.3,0.54992]
[1754318893917,3.0155,3636.1,3636.0,0.5442]
[1754318894123,3.8482,3636.1,3636.0,0.54997]
[1754318895417,3.8482,3636.1,3636.0,3.52817]
[1754318895618,3.8482,3636.1,3636.0,4.38817]
[1754318895917,3.8482,3636.1,3636.0,3.52817]
[1754318896115,3.8482,3636.4,3636.3,2.27753]
[1754318896315,3.8482,3636.4,3636.3,4.38813]
[1754318896516,1.002,3636.5,3636.4,0.95691]
[1754318896727,3.8482,3636.5,3636.4,2.68451]
[1754318897032,3.8482,3636.5,3636.4,1.09411]
[1754318897315,3.8482,3636.5,3636.3,0.54993]
[1754318897316,4.39811,3636.5,3636.3,0.54993]
[1754318897523,3.8482,3636.4,3636.3,1.09413]
[1754318897917,3.8482,3636.4,3636.3,3.52813]
[1754318898115,3.8482,3636.7,3636.6,2.08459]
[1754318898436,0.54986,3636.8,3636.7,0.54986]
[1754318898437,3.8482,3636.8,3636.7,0.54986]
[1754318898628,3.8482,3636.8,3636.7,1.09406]
[1754318899120,4.39807,3636.8,3636.6,0.54988]
[1754318899425,3.8482,3636.7,3636.6,0.54988]
[1754318899721,3.8482,3636.7,3636.6,1.09408]
[1754318900825,4.8482,3637.0,3636.9,4.38804]
[1754318901830,1.0,3637.0,3636.9,4.38804]
[1754318902026,3.2359,3637.0,3636.9,4.38804]
[1754318902222,4.8482,3637.0,3636.9,4.38804]
[1754318902722,4.8482,3637.0,3636.9,0.54984]
[1754318903125,4.8482,3637.0,3636.9,4.38804]
[1754318903322,1.0,3637.0,3636.9,4.38804]
[1754318904121,4.8482,3637.0,3636.9,4.38804]
[1754318904317,0.41432,3637.0,3636.9,4.38804]
[1754318904517,2.2855,3637.7,3637.6,3.54433]
[1754318904722,1.6509,3637.7,3637.6,4.38793]
[1754318904929,3.8482,3638.0,3637.9,4.38789]
[1754318905131,4.75096293,3638.0,3637.9,4.38789]
[1754318905325,0.90276293,3638.0,3637.9,4.38789]
[1754318905527,2.35709485,3638.3,3638.2,2.08434]
[1754318905723,4.7514946,3638.3,3638.2,1.67734]
[1754318905922,0.9032946,3638.3,3638.2,3.78794]
[1754318906221,0.9032946,3638.6,3638.5,4.3878]
[1754318906422,0.15979485,3638.7,3638.6,3.294]
[1754318906621,0.8327,3639.5,3639.4,2.3035]
[1754318906824,2.2855,3639.7,3639.5,1.14935]
[1754318907126,3.2855,3640.0,3639.9,0.54939]
[1754318907337,1.0,3640.0,3639.9,2.85289]
[1754318907518,1.0,3640.0,3639.9,6.06069]
[1754318907726,1.0,3640.0,3639.9,3.75719]
[1754318907930,1.0,3640.0,3639.9,6.06069]
[1754318908818,5.84728428,3641.3,3640.3,1.7036]
[1754318909023,4.8587,3641.3,3640.7,0.8436]
[1754318909231,1.38189,3641.2,3640.8,2.3035]
[1754318909425,2.2855,3641.0,3640.8,2.3035]
[1754318909625,2.2855,3640.9,3640.8,2.3035]
[1754318909930,3.2078,3641.3,3640.9,0.54924]
[1754318910129,3.2078,3641.3,3641.1,0.54921]
[1754318910432,1.6509,3641.9,3641.3,2.85268]
[1754318910827,1.6509,3641.9,3641.3,3.12097039]
[1754318911135,2.2855,3642.3,3641.5,2.3035]
[1754318911436,0.6346,3642.4,3642.1,0.86]
[1754318911622,2.2855,3642.7,3642.4,2.3035]
[1754318911826,0.8327,3642.6,3642.5,0.8436]
[1754318912119,1.0,3643.0,3642.7,0.54897]
[1754318912329,1.0,3643.0,3642.7,3.75677]
[1754318912530,1.0,3643.0,3642.8,0.5999]
[1754318912736,1.0,3643.0,3642.8,20.71085]
[1754318912737,1.6509,3642.9,3642.8,20.71085]
[1754318912933,1.0,3643.0,3642.8,20.71085]
[1754318913233,1.8327,3643.0,3642.9,0.5999]
[1754318913435,0.8182,3642.8,3642.7,3.2078]
[1754318913634,0.8327,3642.8,3642.3,3.2078]
[1754318913933,0.6346,3642.8,3642.3,3.2078]
[1754318914129,1.54893,3643.0,3642.4,0.54901]
[1754318914336,1.0,3643.0,3642.9,0.702]
[1754318914547,1.8327,3643.0,3642.9,2.1619]
[1754318914730,2.6509,3643.0,3642.9,1.3019]
[1754318915034,1.0,3643.0,3642.9,2.1619]
[1754318916236,0.98858428,3644.5,3642.9,2.1619]
[1754318916237,3.75647,3644.7,3644.2,0.54874]
[1754318916540,0.6346,3644.5,3644.3,0.5999]
[1754318916732,0.8182,3644.4,3644.3,1.14862]
[1754318917042,0.8327,3644.8,3644.3,3.8077]
[1754318917236,1.6509,3644.5,3644.4,1.1486]
[1754318917655,1.6509,3644.4,3643.7,22.7568]
[1754318917840,3.2078,3644.8,3643.7,3.2078]
[1754318917841,0.8182,3643.9,3643.7,3.2078]
[1754318918034,1.6509,3643.8,3643.4,19.554]
[1754318918231,2.2855,3644.0,3643.4,0.5999]
[1754318918434,2.2855,3644.0,3643.6,0.54882]
[1754318918435,2.2855,3643.8,3643.6,0.54882]
[1754318918634,1.18338,3643.9,3643.6,0.54882]
[1754318918832,3.2078,3644.3,3643.3,3.8077]
[1754318918833,2.2855,3644.2,3643.3,3.8077]
[1754318919033,3.2078,3644.3,3643.6,0.54883]
[1754318919034,0.8182,3643.8,3643.6,0.54883]
[1754318919231,0.6346,3643.7,3643.6,0.54883]
[1754318919442,2.2855,3643.4,3643.3,22.7568]
[1754318919934,3.8424,3643.8,3643.3,23.3567]
[1754318920141,1.4812,3643.7,3643.6,0.54883]
[1754318920334,1.4812,3643.7,3643.4,0.0034]
[1754318920534,3.2078,3643.8,3643.4,0.6576]
[1754318920738,1.7049,3643.5,3643.4,1.20985]
[1754318921236,1.7049,3643.5,3643.4,2.06025]
[1754318921639,2.309,3643.5,3643.4,0.6576]
[1754318921838,2.309,3643.5,3643.3,3.75667]
[1754318921839,0.6041,3643.6,3643.5,0.54884]
[1754318922041,1.15283,3644.3,3643.4,0.6576]
[1754318922242,1.7049,3643.8,3643.5,0.54884]
[1754318922443,1.7049,3643.6,3643.3,23.32467]
[1754318922630,1.37182,3644.3,3643.0,0.0034]
[1754318922631,0.8278,3643.3,3643.0,0.54891]
[1754318922937,2.309,3643.2,3643.1,0.5489]
[1754318923241,1.37183,3644.3,3643.4,0.54885]
[1754318923242,0.54883,3643.7,3643.4,0.54885]
[1754318923435,2.309,3643.5,3643.4,0.54885]
[1754318923635,3.2078,3644.1,3643.1,1.2065]
[1754318923636,0.54886,3643.4,3643.1,1.2065]
[1754318923941,2.309,3643.2,3643.1,0.5489]
[1754318924141,2.309,3643.1,3643.0,0.54892]
[1754318924448,1.309,3643.1,3643.0,0.54892]
[1754318924738,0.309,3643.1,3643.0,1.20652]
[1754318925236,0.309,3643.1,3643.0,0.54892]
[1754318925440,0.54887,3643.4,3643.1,0.54889]
[1754318925641,0.54889,3643.3,3643.1,0.54889]
[1754318925835,0.54888,3643.3,3643.0,0.54891]
[1754318926237,0.54893,3643.0,3642.8,3.2078]
[1754318926439,0.54896,3642.8,3642.5,0.549]
[1754318926637,0.54898,3642.7,3642.5,0.54898]
[1754318926832,2.309,3642.6,3642.4,3.7568]
[1754318927137,0.54898,3642.7,3642.5,0.54899]
[1754318927540,2.309,3642.6,3642.4,3.7568]
[1754318927738,2.309,3643.2,3642.4,3.2078]
[1754318927935,3.2078,3643.3,3642.4,3.2078]
[1754318928138,1.37229,3643.1,3642.4,3.2078]
[1754318928339,2.309,3642.5,3642.4,3.7568]
[1754318929250,1.4319,3642.9,3642.8,0.54895]
[1754318929742,2.309,3642.9,3642.8,0.54895]
[1754318929943,2.309,3642.9,3642.8,2.05965]
[1754318930142,0.8278,3642.9,3642.8,0.54895]
[1754318930345,2.309,3643.2,3642.4,3.2078]
[1754318930544,1.7049,3642.5,3642.4,3.2078]
[1754318930741,2.309,3642.5,3642.4,3.2078]
[1754318932644,2.309,3642.5,3641.9,0.6576]
[1754318932645,3.93346198,3642.5,3641.6,0.6576]
[1754318932850,2.309,3642.4,3641.6,0.6576]
[1754318933049,2.309,3642.3,3642.1,0.54905]
[1754318933249,1.27615835,3642.2,3642.0,0.54906]
[1754318933450,2.309,3642.1,3642.0,0.54906]
[1754318933651,3.03610835,3642.1,3642.0,0.54906]
[1754318934539,2.15900835,3642.1,3642.0,1.40216]
[1754318934745,3.03610835,3642.1,3642.0,1.20666]
[1754318934942,3.03610835,3642.1,3642.0,0.54906]
[1754318936354,3.03610835,3642.1,3642.0,1.20666]
[1754318936848,0.72710835,3642.1,3642.0,2.91016]
[1754318937055,1.70486598,3642.1,3642.0,2.91016]
[1754318937248,0.72710835,3642.1,3642.0,2.91016]
[1754318937451,2.43200835,3642.1,3642.0,2.91016]
[1754318937752,3.03610835,3642.1,3642.0,2.05976]
[1754318937941,2.43200835,3642.1,3642.0,2.05976]
[1754318938150,1.7062447,3642.1,3642.0,2.91016]
[1754318938354,1.70695182,3642.1,3642.0,2.91016]
[1754318938558,0.72710835,3642.1,3642.0,2.91016]
[1754318939054,0.17400835,3642.1,3642.0,2.91016]
[1754318939252,2.48300835,3642.1,3642.0,21.60076]
[1754318939453,1.05110835,3642.1,3642.0,22.45116]
[1754318939664,0.17400835,3642.1,3642.0,22.45116]
[1754318940666,8.35e-06,3642.1,3642.0,22.45116]
[1754318940862,0.97984347,3642.4,3642.3,0.54903]
[1754318941057,0.97984347,3642.4,3642.3,6.11793]
[1754318941358,1.7049,3642.4,3642.3,5.46033]
[1754318941762,0.97984347,3642.7,3642.6,2.3611]
[1754318941955,0.09934347,3642.9,3642.7,0.54897]
[1754318942155,0.8771,3643.1,3642.8,3.2078]
[1754318942366,0.6041,3642.8,3642.4,0.54901]
[1754318942665,1.7049,3642.7,3642.4,0.54901]
[1754318942963,2.309,3642.6,3642.5,0.549]
[1754318943160,2.309,3642.6,3642.5,1.2066]
[1754318943556,2.309,3642.6,3642.5,0.549]
[1754318943957,1.7049,3642.6,3642.5,1.3994]
[1754318944160,1.7049,3642.6,3642.5,2.057]
[1754318944362,2.34677092,3643.0,3642.8,1.20655]
[1754318944662,1.46967092,3643.2,3643.0,0.54892]
[1754318945051,2.309,3643.1,3643.0,0.54892]
[1754318945261,3.77867092,3643.2,3643.1,0.5489]
[1754318945470,2.45294141,3643.2,3643.1,0.5489]
[1754318945757,3.8895,3643.2,3643.1,0.5489]
[1754318946157,3.8895,3643.2,3643.1,1.5326]
[1754318946363,3.8895,3643.2,3643.1,2.1902]
[1754318946559,3.8895,3643.2,3643.1,0.5489]
[1754318946758,3.8895,3643.2,3643.1,1.5326]
[1754318947060,3.2854,3643.2,3643.1,3.0406]
[1754318947763,2.4576,3643.2,3643.1,3.0406]
[1754318947965,3.2854,3643.2,3643.1,3.0406]
[1754318948161,2.0144,3643.2,3643.1,3.0406]
[1754318948353,1.46967092,3643.4,3642.9,22.7458]
[1754318948354,2.8422,3643.4,3643.3,2.60937]
[1754318948560,2.1846,3643.7,3643.6,1.53253]
[1754318948763,4.03336564,3643.7,3643.6,2.19013]
[1754318948958,3.42926564,3643.7,3643.5,0.54884]
[1754318949160,2.1846,3643.7,3643.6,1.6413]
[1754318949665,1.46967092,3644.4,3644.3,2.05672]
[1754318949860,1.46967092,3644.4,3644.3,5.26452]
[1754318949861,0.14382478,3644.4,3644.3,5.26452]
[1754318950062,2.3621,3644.4,3644.3,4.60692]
[1754318950766,3.2078,3644.5,3644.3,0.54872]
[1754318950961,2.3432,3644.4,3644.3,0.54872]
[1754318951163,2.3432,3644.4,3644.3,2.06542]
[1754318951464,2.48697105,3644.4,3644.3,2.06542]
[1754318952560,0.14377105,3644.4,3644.3,2.06542]
[1754318952766,1.00457105,3644.8,3644.6,0.54868]
[1754318952969,0.81932159,3644.7,3644.4,0.5487]
[1754318953265,2.3432,3644.4,3644.3,0.54872]
[1754318953462,2.48697105,3644.4,3644.3,0.54872]
[1754318953969,2.3432,3644.4,3644.3,0.54872]
[1754318954163,1.37139,3645.5,3644.3,0.54872]
[1754318954164,0.8608,3644.9,3644.3,4.57962]
[1754318954363,1.46967092,3645.4,3643.3,42.26836]
[1754318954364,0.8809,3644.6,3644.5,0.54869]
[1754318954568,0.6015,3644.4,3644.2,0.8544]
[1754318954772,0.6015,3644.4,3644.3,0.54872]
[1754318954970,2.3432,3644.4,3644.3,0.54872]
[1754318955972,0.8608,3644.4,3644.3,2.06542]
[1754318956170,0.8608,3644.6,3644.5,0.54869]
[1754318956374,2.3432,3644.6,3644.5,0.54869]
[1754318957076,2.3432,3644.5,3644.4,0.5487]
[1754318957566,4.68495834,3646.1,3644.0,19.53]
[1754318957567,2.42824793,3647.1,3645.6,0.6623]
[1754318957770,0.70787891,3647.0,3646.9,0.54833]
[1754318957968,8.91e-06,3647.0,3646.9,3.75613]
[1754318958366,2.3432,3647.4,3647.3,0.54827]
[1754318958569,2.3432,3647.4,3647.3,3.75607]
[1754318958775,5.551,3647.4,3647.3,3.75607]
[1754318959977,5.551,3647.4,3647.3,3.2078]
[1754318960779,5.551,3647.4,3647.3,2.0109167]
[1754318961971,3.2078,3647.4,3647.3,3.2214867]
[1754318962172,4.9495,3647.4,3647.3,2.6732167]
[1754318962474,5.551,3647.4,3647.3,2.0109167]
[1754318963375,5.551,3647.4,3647.3,1.6603]
[1754318963571,5.551,3647.4,3646.4,0.97813596]
[1754318963875,2.3432,3647.1,3647.0,0.54832]
[1754318964176,2.3432,3647.1,3646.9,3.2078]
[1754318964376,5.551,3647.0,3646.9,3.2078]
[1754318965375,6.09932,3647.0,3646.9,3.2078]
[1754318965569,0.54836,3646.8,3646.5,0.54838]
[1754318965874,5.551,3646.6,3646.5,0.54838]
[1754318966173,2.3432,3646.5,3646.4,3.2078]
[1754318966380,0.6015,3646.2,3645.9,0.54847]
[1754318966678,2.3432,3646.0,3645.9,0.54847]
[1754318966876,5.551,3646.0,3645.9,0.54847]
[1754318967174,3.2078,3646.0,3645.9,0.54848]
[1754318967378,3.8093,3646.0,3645.9,0.54848]
[1754318967875,3.2078,3646.0,3645.9,2.01078]
[1754318968191,3.2078,3646.0,3645.9,2.86518]
[1754318968574,3.2078,3646.0,3645.9,2.01078]
[1754318968768,5.551,3646.0,3645.9,1.21078]
[1754318969979,5.551,3646.0,3645.9,0.6623]
[1754318969980,3.2078,3646.0,3645.9,0.6623]
[1754318970276,3.2078,3646.0,3645.6,3.2078]
[1754318970277,5.551,3646.0,3645.8,0.54849]
[1754318970579,3.2078,3645.8,3645.7,2.86521]
[1754318970973,0.8809,3646.1,3645.7,2.86521]
[1754318970974,0.6015,3646.2,3646.0,0.54847]
[1754318971174,0.6015,3646.4,3646.3,0.54842]
[1754318971366,3.2078,3646.1,3646.0,3.75627]
[1754318971572,5.551,3646.1,3646.0,3.75627]
[1754318972573,5.551,3646.1,3646.0,3.2078]
[1754318972877,3.2078,3646.1,3646.0,5.5245]
[1754318973279,4.0887,3646.1,3646.0,4.6701]
[1754318973577,4.9495,3646.1,3646.0,4.6701]
[1754318973777,4.9495,3646.1,3646.0,5.5245]
[1754318974278,3.2078,3646.1,3646.0,5.5245]
[1754318974781,2.3432,3646.5,3646.4,0.54841]
[1754318974984,5.551,3646.5,3646.4,0.54841]
[1754318975181,4.0887,3646.5,3646.4,2.01071]
[1754318975483,4.0887,3646.5,3646.4,2.86511]
[1754318975670,5.551,3646.5,3646.4,1.5755598]
[1754318975879,1.7417,3646.9,3646.8,2.01065]
[1754318976176,1.7417,3646.9,3646.8,2.3754998]
[1754318976374,4.9495,3646.9,3646.8,2.3754998]
[1754318976571,5.551,3646.9,3646.8,5.5832998]
[1754318976776,5.551,3646.9,3646.8,4.1209998]
[1754318976976,5.551,3646.9,3646.8,4.7832998]